fUSD/lending_fUSD_20260512
["ID","MTS","AMOUNT","RATE_DAILY","PERIOD"]
[422123929,1778590242000,-1000.0,0.00020062,2]
[422123932,1778590242000,-428.89097521,0.00020062,2]
[422123936,1778590242000,-21789.12,0.00020548,2]
[422123935,1778590242000,-591.19,0.00020548,2]
[422123938,1778590242000,-1005.44740162,0.0002061,2]
[422123946,1778590242000,-812.35,0.000209,2]
[422123947,1778590242000,-158.0,0.00021,2]
[422123937,1778590242000,-150.0,0.0002058,2]
[422123942,1778590242000,-1086.01723516,0.0002061,2]
[422123939,1778590242000,-1500.0,0.0002061,2]
[422123927,1778590242000,-1000.0,0.00020062,2]
[422123944,1778590242000,-1900.007,0.00020822,2]
[422123941,1778590242000,-1500.0,0.0002061,2]
[422123943,1778590242000,-175.783255,0.00020663,2]
[422123945,1778590242000,-163.41,0.00020888,2]
[422123949,1778590242000,-261.0,0.00021,2]
[422123950,1778590242000,-298.0,0.00021,2]
[422123948,1778590242000,-327.0,0.00021,2]
[422123954,1778590242000,-279.0,0.00021,2]
[422123951,1778590242000,-155.47567848,0.00021,2]
[422123956,1778590242000,-1055.0,0.00021,2]
[422123953,1778590242000,-154.0,0.00021,2]
[422123955,1778590242000,-568.0,0.00021,2]
[422123952,1778590242000,-198.0,0.00021,2]
[422123887,1778590242000,-329.212006,0.0001999,2]
[422123940,1778590242000,-1500.0,0.0002061,2]
[422123928,1778590242000,-1000.0,0.00020062,2]
[422123957,1778590242000,-5530.0,0.00021,3]
[422123925,1778590242000,-2437.27,0.0002,2]
[422123930,1778590242000,-1000.0,0.00020062,2]
[422123892,1778590242000,-358.918878,0.0001999,2]
[422123895,1778590242000,-500.0,0.00019999,2]
[422123894,1778590242000,-358.918881,0.0001999,2]
[422123896,1778590242000,-500.0,0.00019999,2]
[422123897,1778590242000,-361.16722586,0.00019999,2]
[422123893,1778590242000,-358.918878,0.0001999,2]
[422123899,1778590242000,-500.0,0.00019999,2]
[422123905,1778590242000,-500.0,0.00019999,2]
[422123909,1778590242000,-500.0,0.00019999,2]
[422123907,1778590242000,-500.0,0.00019999,2]
[422123900,1778590242000,-178.95467784,0.00019999,2]
[422123921,1778590242000,-154.0,0.0002,2]
[422123911,1778590242000,-566.12494197,0.00019999,2]
[422123898,1778590242000,-500.0,0.00019999,2]
[422123914,1778590242000,-1488.85935243,0.0002,5]
[422123910,1778590242000,-500.0,0.00019999,2]
[422123933,1778590242000,-151.0,0.000203,2]
[422123926,1778590242000,-1000.0,0.00020062,2]
[422123922,1778590242000,-279.0,0.0002,2]
[422123919,1778590242000,-155.0,0.0002,2]
[422123917,1778590242000,-261.0,0.0002,2]
[422123934,1778590242000,-8940.0,0.000205,2]
[422123913,1778590242000,-500.0,0.00019999,2]
[422123918,1778590242000,-298.0,0.0002,2]
[422123920,1778590242000,-198.0,0.0002,2]
[422123916,1778590242000,-327.0,0.0002,2]
[422123912,1778590242000,-500.0,0.00019999,2]
[422123915,1778590242000,-158.0,0.0002,2]
[422123999,1778590243000,-198.0,0.00022,2]
[422123997,1778590243000,-261.0,0.00022,2]
[422124006,1778590243000,-1000.0,0.00022086,2]
[422123996,1778590243000,-327.0,0.00022,2]
[422123994,1778590243000,-502.22153914,0.00021966,2]
[422123992,1778590243000,-1000.0,0.00021921,2]
[422123991,1778590243000,-5000.0,0.00021918,2]
[422123993,1778590243000,-2437.27,0.00021956,2]
[422123995,1778590243000,-169.0,0.00022,2]
[422123984,1778590243000,-1002.38364617,0.00021775,2]
[422123990,1778590243000,-258.495888,0.00021918,2]
[422123988,1778590243000,-1000.0,0.00021881,2]
[422124008,1778590243000,-1002.81656329,0.00022281,2]
[422124005,1778590243000,-330.0,0.00022082,4]
[422124001,1778590243000,-568.0,0.00022,2]
[422124003,1778590243000,-1055.0,0.00022,2]
[422124000,1778590243000,-279.0,0.00022,2]
[422124002,1778590243000,-693.1,0.00022,2]
[422124007,1778590243000,-223.57035662,0.00022269,16]
[422124009,1778590243000,-151.0,0.00022353,2]
[422124018,1778590243000,-49645.55646795,0.00023,2]
[422124010,1778590243000,-705.57359722,0.00022417,2]
[422124011,1778590243000,-293.42729924,0.00022429,2]
[422124012,1778590243000,-2165.77,0.00022466,2]
[422123989,1778590243000,-186.01356577,0.000219,2]
[422124017,1778590243000,-1500.0,0.00022959,30]
[422123998,1778590243000,-298.0,0.00022,2]
[422123987,1778590243000,-507.4339652,0.00021869,2]
[422123968,1778590243000,-160.0,0.00021253,2]
[422123985,1778590243000,-1026.08978,0.00021775,2]
[422124013,1778590243000,-1000.0,0.00022469,2]
[422123960,1778590243000,-1001.43213113,0.00021158,2]
[422123959,1778590243000,-2003.36256891,0.00021158,2]
[422123961,1778590243000,-1506.52667117,0.00021158,2]
[422123958,1778590243000,-179.0,0.00021,2]
[422123962,1778590243000,-186.01356577,0.000212,2]
[422123963,1778590243000,-289.55339026,0.00021227,2]
[422123964,1778590243000,-500.0,0.00021227,2]
[422123970,1778590243000,-500.0,0.00021321,2]
[422123971,1778590243000,-500.0,0.00021321,2]
[422123966,1778590243000,-500.0,0.00021227,2]
[422123965,1778590243000,-500.0,0.00021227,2]
[422123986,1778590243000,-1000.0,0.00021869,2]
[422123969,1778590243000,-214.86625456,0.00021253,2]
[422123973,1778590243000,-500.0,0.00021373,2]
[422123972,1778590243000,-500.0,0.00021333,2]
[422123976,1778590243000,-5530.0,0.000215,5]
[422123974,1778590243000,-500.0,0.00021418,2]
[422123975,1778590243000,-186.01356577,0.000215,2]
[422123977,1778590243000,-171.81786301,0.00021501,14]
[422123980,1778590243000,-500.0,0.00021538,2]
[422123982,1778590243000,-500.0,0.00021733,2]
[422123978,1778590243000,-207.98083305,0.00021501,14]
[422123981,1778590243000,-186.01356577,0.000217,2]
[422123979,1778590243000,-182.61156918,0.00021501,15]
[422123983,1778590243000,-814.9678953,0.00021775,2]
[422123967,1778590243000,-501.20980551,0.00021227,2]
[422124014,1778590243000,-163.41,0.0002248,2]
[422124016,1778590243000,-1500.0,0.00022634,2]
[422124066,1778590243000,-780.61,0.00024943,2]
[422124047,1778590243000,-333.52637976,0.00024658,2]
[422124053,1778590243000,-275.33,0.00024658,2]
[422124051,1778590243000,-150.0,0.00024658,2]
[422124050,1778590243000,-208.0,0.00024658,2]
[422124048,1778590243000,-291.0,0.00024658,2]
[422124049,1778590243000,-224.0,0.00024658,2]
[422124056,1778590243000,-151.0,0.00024658,2]
[422124069,1778590243000,-625.46438992,0.00025,5]
[422124057,1778590243000,-151.0,0.00024658,2]
[422124059,1778590243000,-151.0,0.00024658,2]
[422124058,1778590243000,-151.0,0.00024658,2]
[422124068,1778590243000,-9999.99,0.0002498,2]
[422124045,1778590243000,-360.0,0.00024658,2]
[422124061,1778590243000,-246.240007,0.00024658,2]
[422124060,1778590243000,-151.0,0.00024658,2]
[422124063,1778590243000,-155.75,0.00024658,2]
[422124065,1778590243000,-1500.0,0.000249,2]
[422124062,1778590243000,-158.3,0.00024658,2]
[422124064,1778590243000,-789.29,0.00024669,2]
[422124070,1778590243000,-598.0,0.00025,2]
[422124072,1778590243000,-277.20899857,0.00025,2]
[422124073,1778590243000,-301.0,0.00025,2]
[422124071,1778590243000,-340.0,0.00025,2]
[422124075,1778590243000,-208.2157166,0.00025,30]
[422124076,1778590243000,-203.0,0.00025,2]
[422124015,1778590243000,-1500.0,0.000225,2]
[422124067,1778590243000,-2322.42,0.0002498,2]
[422124054,1778590243000,-151.0,0.00024658,2]
[422124055,1778590243000,-151.0,0.00024658,2]
[422124046,1778590243000,-314.0,0.00024658,2]
[422124020,1778590243000,-10000.0,0.00023,30]
[422124030,1778590243000,-206.09397691,0.00023599,2]
[422124019,1778590243000,-10000.0,0.00023,30]
[422124032,1778590243000,-327.0,0.00024,2]
[422124031,1778590243000,-2437.27,0.00023911,2]
[422124022,1778590243000,-261.0,0.00023,2]
[422124021,1778590243000,-327.0,0.00023,2]
[422124023,1778590243000,-298.0,0.00023,2]
[422124052,1778590243000,-1000.0,0.00024658,2]
[422124025,1778590243000,-279.0,0.00023,2]
[422124024,1778590243000,-198.0,0.00023,2]
[422124028,1778590243000,-312.76767965,0.00023182,2]
[422124027,1778590243000,-1055.0,0.00023,2]
[422124029,1778590243000,-1500.0,0.000233,2]
[422124026,1778590243000,-568.0,0.00023,2]
[422124041,1778590243000,-151.0,0.00024324,2]
[422124036,1778590243000,-198.0,0.00024,2]
[422124034,1778590243000,-298.0,0.00024,2]
[422124038,1778590243000,-568.0,0.00024,2]
[422124035,1778590243000,-812.35,0.00024,7]
[422124037,1778590243000,-279.0,0.00024,2]
[422124040,1778590243000,-1500.0,0.000241,2]
[422124039,1778590243000,-1055.0,0.00024,2]
[422124044,1778590243000,-388.71043036,0.00024658,2]
[422124042,1778590243000,-510.0,0.00024397,2]
[422124043,1778590243000,-151.0,0.00024655,7]
[422124033,1778590243000,-261.0,0.00024,2]
[422124113,1778590244000,-237.63,0.00026084,2]
[422124112,1778590244000,-1587.25,0.00026055,7]
[422124119,1778590244000,-237.63,0.00026113,2]
[422124118,1778590244000,-1587.25,0.00026084,2]
[422124117,1778590244000,-4633.75,0.00026084,2]
[422124109,1778590244000,-1590.05,0.00026055,7]
[422124116,1778590244000,-237.4,0.00026084,2]
[422124111,1778590244000,-4633.75,0.00026055,7]
[422124115,1778590244000,-1590.05,0.00026084,2]
[422124108,1778590244000,-4640.39,0.00026055,7]
[422124114,1778590244000,-4640.39,0.00026084,2]
[422124110,1778590244000,-237.4,0.00026055,7]
[422124121,1778590244000,-1590.05,0.00026113,2]
[422124144,1778590244000,-1587.25,0.000262,2]
[422124130,1778590244000,-1587.25,0.00026142,7]
[422124122,1778590244000,-237.4,0.00026113,2]
[422124128,1778590244000,-237.4,0.00026142,7]
[422124126,1778590244000,-4640.39,0.00026142,7]
[422124120,1778590244000,-4640.39,0.00026113,2]
[422124125,1778590244000,-237.63,0.00026142,7]
[422124123,1778590244000,-4633.75,0.00026113,2]
[422124124,1778590244000,-1587.25,0.00026113,2]
[422124127,1778590244000,-1590.05,0.00026142,7]
[422124129,1778590244000,-4633.75,0.00026142,7]
[422124133,1778590244000,-237.63,0.00026171,7]
[422124145,1778590244000,-158.3,0.00026223,7]
[422124107,1778590244000,-237.63,0.00026055,7]
[422124131,1778590244000,-168.85,0.00026164,7]
[422124096,1778590244000,-31236.71564895,0.0002589,5]
[422124080,1778590244000,-158.3,0.00025049,7]
[422124097,1778590244000,-5138.94395833,0.00026,30]
[422124078,1778590244000,-568.47700498,0.00025,2]
[422124081,1778590244000,-155.75,0.00025049,7]
[422124079,1778590244000,-1060.29275461,0.00025,2]
[422124077,1778590244000,-293.81095167,0.00025,2]
[422124083,1778590244000,-693.1,0.00025252,7]
[422124093,1778590244000,-155.75,0.00025831,2]
[422124094,1778590244000,-250.0,0.00025854,2]
[422124082,1778590244000,-185.50872103,0.00025205,2]
[422124085,1778590244000,-345.22,0.00025397,2]
[422124087,1778590244000,-158.3,0.0002544,30]
[422124092,1778590244000,-158.3,0.00025831,2]
[422124088,1778590244000,-155.75,0.0002544,30]
[422124104,1778590244000,-166.13,0.00026027,2]
[422124091,1778590244000,-510.0,0.00025823,3]
[422124084,1778590244000,-150.0,0.00025306,2]
[422124090,1778590244000,-2206.0,0.000257,7]
[422124089,1778590244000,-4160.01402013,0.000255,2]
[422124095,1778590244000,-2437.27,0.00025867,7]
[422124102,1778590244000,-1590.05,0.00026027,2]
[422124100,1778590244000,-168.85,0.00026027,2]
[422124103,1778590244000,-237.4,0.00026027,2]
[422124101,1778590244000,-4640.39,0.00026027,2]
[422124099,1778590244000,-237.63,0.00026027,2]
[422124105,1778590244000,-4633.75,0.00026027,2]
[422124098,1778590244000,-2206.0,0.00026,7]
[422124106,1778590244000,-1587.25,0.00026027,2]
[422124086,1778590244000,-156.07,0.00025434,2]
[422124143,1778590244000,-4633.75,0.000262,2]
[422124142,1778590244000,-237.4,0.000262,2]
[422124136,1778590244000,-237.4,0.00026171,7]
[422124171,1778590244000,-237.4,0.00026315,7]
[422124169,1778590244000,-4640.39,0.00026315,7]
[422124172,1778590244000,-4633.75,0.00026315,7]
[422124170,1778590244000,-1590.05,0.00026315,7]
[422124179,1778590244000,-1587.25,0.00026344,7]
[422124177,1778590244000,-237.4,0.00026344,7]
[422124178,1778590244000,-4633.75,0.00026344,7]
[422124176,1778590244000,-1590.05,0.00026344,7]
[422124173,1778590244000,-1587.25,0.00026315,7]
[422124175,1778590244000,-4640.39,0.00026344,7]
[422124174,1778590244000,-237.63,0.00026344,7]
[422124190,1778590244000,-4640.39,0.00026402,7]
[422124180,1778590244000,-237.63,0.00026373,2]
[422124189,1778590244000,-237.63,0.00026402,7]
[422124191,1778590244000,-1590.05,0.00026402,7]
[422124188,1778590244000,-152.59543025,0.00026402,2]
[422124183,1778590244000,-237.4,0.00026373,2]
[422124184,1778590244000,-4633.75,0.00026373,2]
[422124181,1778590244000,-4640.39,0.00026373,2]
[422124182,1778590244000,-1590.05,0.00026373,2]
[422124187,1778590244000,-152.0,0.00026383,7]
[422124186,1778590244000,-152.0,0.00026383,7]
[422124185,1778590244000,-1587.25,0.00026373,2]
[422124193,1778590244000,-4633.75,0.00026402,7]
[422124194,1778590244000,-1587.25,0.00026402,7]
[422124192,1778590244000,-237.4,0.00026402,7]
[422124196,1778590244000,-4640.39,0.00026431,2]
[422124168,1778590244000,-237.63,0.00026315,7]
[422124159,1778590244000,-237.63,0.00026286,2]
[422124139,1778590244000,-237.63,0.000262,2]
[422124163,1778590244000,-4633.75,0.00026286,2]
[422124161,1778590244000,-1590.05,0.00026286,2]
[422124141,1778590244000,-1590.05,0.000262,2]
[422124195,1778590244000,-237.63,0.00026431,2]
[422124132,1778590244000,-166.13,0.00026164,7]
[422124140,1778590244000,-4640.39,0.000262,2]
[422124134,1778590244000,-4640.39,0.00026171,7]
[422124138,1778590244000,-1587.25,0.00026171,7]
[422124137,1778590244000,-4633.75,0.00026171,7]
[422124147,1778590244000,-237.63,0.00026229,7]
[422124149,1778590244000,-1590.05,0.00026229,7]
[422124146,1778590244000,-155.75,0.00026223,7]
[422124148,1778590244000,-4640.39,0.00026229,7]
[422124151,1778590244000,-4633.75,0.00026229,7]
[422124135,1778590244000,-1590.05,0.00026171,7]
[422124153,1778590244000,-237.63,0.00026257,2]
[422124150,1778590244000,-237.4,0.00026229,7]
[422124162,1778590244000,-237.4,0.00026286,2]
[422124157,1778590244000,-4633.75,0.00026257,2]
[422124160,1778590244000,-4640.39,0.00026286,2]
[422124165,1778590244000,-151.0,0.00026296,2]
[422124166,1778590244000,-168.85,0.00026301,30]
[422124155,1778590244000,-1590.05,0.00026257,2]
[422124158,1778590244000,-1587.25,0.00026257,2]
[422124167,1778590244000,-166.13,0.00026301,30]
[422124156,1778590244000,-237.4,0.00026257,2]
[422124154,1778590244000,-4640.39,0.00026257,2]
[422124152,1778590244000,-1587.25,0.00026229,7]
[422124164,1778590244000,-1587.25,0.00026286,2]
[422124235,1778590245000,-4633.89,0.00026575,7]
[422124238,1778590245000,-9999.99,0.00026591,2]
[422124237,1778590245000,-299.99,0.00026591,12]
[422124240,1778590245000,-24999.99,0.00026591,2]
[422124234,1778590245000,-166.16,0.00026575,7]
[422124230,1778590245000,-168.87,0.00026575,7]
[422124243,1778590245000,-9999.99,0.00026591,2]
[422124233,1778590245000,-237.49,0.00026575,7]
[422124244,1778590245000,-999.99,0.00026591,2]
[422124229,1778590245000,-237.67,0.00026575,7]
[422124236,1778590245000,-1587.39,0.00026575,7]
[422124232,1778590245000,-1590.06,0.00026575,7]
[422124242,1778590245000,-9999.99,0.00026591,2]
[422124250,1778590245000,-158.3,0.00026614,30]
[422124239,1778590245000,-150.99,0.00026591,2]
[422124246,1778590245000,-9999.99,0.00026591,2]
[422124256,1778590245000,-158.3,0.00027005,2]
[422124245,1778590245000,-65055.96,0.00026591,10]
[422124247,1778590245000,-499.99,0.00026591,2]
[422124251,1778590245000,-155.75,0.00026614,30]
[422124253,1778590245000,-2600.0,0.000269,9]
[422124252,1778590245000,-150.0,0.00026849,2]
[422124254,1778590245000,-2828.867741,0.00027,2]
[422124255,1778590245000,-153.09,0.00027005,2]
[422124249,1778590245000,-27694.4,0.00026591,2]
[422124248,1778590245000,-1301.62,0.00026591,2]
[422124228,1778590245000,-1587.25,0.00026546,2]
[422124258,1778590245000,-510.0,0.00027249,4]
[422124241,1778590245000,-836.99,0.00026591,2]
[422124227,1778590245000,-4633.75,0.00026546,2]
[422124215,1778590245000,-812.35,0.000265,7]
[422124224,1778590245000,-4640.39,0.00026546,2]
[422124203,1778590245000,-237.63,0.00026459,2]
[422124269,1778590245000,-300.0,0.00027397,2]
[422124201,1778590245000,-168.85,0.00026438,2]
[422124200,1778590245000,-1587.25,0.00026431,2]
[422124202,1778590245000,-166.13,0.00026438,2]
[422124197,1778590245000,-1590.05,0.00026431,2]
[422124199,1778590245000,-4633.75,0.00026431,2]
[422124198,1778590245000,-237.4,0.00026431,2]
[422124205,1778590245000,-1590.05,0.00026459,2]
[422124217,1778590245000,-237.63,0.00026517,7]
[422124206,1778590245000,-237.4,0.00026459,2]
[422124207,1778590245000,-4633.75,0.00026459,2]
[422124216,1778590245000,-1500.0,0.000265,2]
[422124223,1778590245000,-237.63,0.00026546,2]
[422124208,1778590245000,-1587.25,0.00026459,2]
[422124210,1778590245000,-4640.39,0.00026488,7]
[422124212,1778590245000,-237.4,0.00026488,7]
[422124214,1778590245000,-1587.25,0.00026488,7]
[422124211,1778590245000,-1590.05,0.00026488,7]
[422124213,1778590245000,-4633.75,0.00026488,7]
[422124220,1778590245000,-237.4,0.00026517,7]
[422124218,1778590245000,-4640.39,0.00026517,7]
[422124225,1778590245000,-1590.05,0.00026546,2]
[422124221,1778590245000,-4633.75,0.00026517,7]
[422124222,1778590245000,-1587.25,0.00026517,7]
[422124219,1778590245000,-1590.05,0.00026517,7]
[422124226,1778590245000,-237.4,0.00026546,2]
[422124231,1778590245000,-4640.43,0.00026575,7]
[422124209,1778590245000,-237.63,0.00026488,7]
[422124204,1778590245000,-4640.39,0.00026459,2]
[422124257,1778590245000,-155.75,0.00027005,2]
[422124261,1778590245000,-1058.25,0.00027333,2]
[422124293,1778590245000,-1713.28389999,0.00027681,2]
[422124289,1778590245000,-564.52604619,0.0002758,2]
[422124297,1778590245000,-206.09397691,0.00027948,2]
[422124301,1778590245000,-17304.0265881,0.00028432,2]
[422124298,1778590245000,-200.0,0.00027948,2]
[422124302,1778590245000,-359.19967472,0.00028493,5]
[422124299,1778590245000,-150.0,0.00028192,2]
[422124303,1778590245000,-812.35,0.000285,7]
[422124300,1778590245000,-151.0,0.00028267,2]
[422124304,1778590245000,-693.1,0.00028504,7]
[422124305,1778590245000,-731.97315253,0.00028614,2]
[422124306,1778590245000,-510.0,0.00028674,6]
[422124308,1778590245000,-151.0,0.00028767,7]
[422124292,1778590245000,-200.0,0.00027671,2]
[422124307,1778590245000,-151.0,0.00028767,7]
[422124318,1778590245000,-731.97315253,0.00028784,2]
[422124312,1778590245000,-151.0,0.00028767,7]
[422124310,1778590245000,-151.0,0.00028767,7]
[422124314,1778590245000,-151.0,0.00028767,7]
[422124311,1778590245000,-151.0,0.00028767,7]
[422124313,1778590245000,-151.0,0.00028767,7]
[422124315,1778590245000,-151.0,0.00028767,7]
[422124316,1778590245000,-151.0,0.00028767,7]
[422124309,1778590245000,-151.0,0.00028767,7]
[422124320,1778590245000,-731.97315253,0.00028833,2]
[422124319,1778590245000,-282.44,0.000288,7]
[422124268,1778590245000,-1009.49,0.00027397,2]
[422124322,1778590245000,-1353.0,0.00028843,2]
[422124317,1778590245000,-178.799411,0.00028767,7]
[422124288,1778590245000,-1058.25,0.000275,2]
[422124321,1778590245000,-504.068,0.00028843,2]
[422124291,1778590245000,-564.52604619,0.00027671,2]
[422124290,1778590245000,-397.91697128,0.00027656,2]
[422124260,1778590245000,-1058.25,0.000273,2]
[422124262,1778590245000,-1058.25,0.00027367,2]
[422124263,1778590245000,-330.0,0.00027393,9]
[422124266,1778590245000,-200.0,0.00027397,2]
[422124267,1778590245000,-1500.0,0.00027397,2]
[422124264,1778590245000,-280.76799385,0.00027397,2]
[422124265,1778590245000,-564.52604619,0.00027397,2]
[422124270,1778590245000,-275.33,0.00027397,2]
[422124272,1778590245000,-177.948761,0.00027397,2]
[422124273,1778590245000,-151.0,0.00027397,2]
[422124274,1778590245000,-299.632183,0.00027397,2]
[422124275,1778590245000,-4418.32,0.00027397,10]
[422124278,1778590245000,-265.9822,0.00027397,2]
[422124259,1778590245000,-2283.0,0.000273,2]
[422124279,1778590245000,-150.0,0.00027397,5]
[422124276,1778590245000,-8425.45,0.00027397,10]
[422124285,1778590245000,-1058.25,0.00027467,2]
[422124286,1778590245000,-564.52604619,0.00027489,2]
[422124283,1778590245000,-1058.25,0.000274,2]
[422124294,1778590245000,-500.0,0.000278,7]
[422124296,1778590245000,-250.0,0.00027945,5]
[422124287,1778590245000,-401.58,0.000275,2]
[422124284,1778590245000,-1058.25,0.00027433,2]
[422124280,1778590245000,-1870.27,0.000274,14]
[422124277,1778590245000,-7021.2,0.00027397,10]
[422124282,1778590245000,-225.56440923,0.000274,2]
[422124281,1778590245000,-282.44,0.000274,7]
[422124271,1778590245000,-151.0,0.00027397,2]
[422124295,1778590245000,-2437.27,0.00027823,7]
[422124366,1778590246000,-154.0,0.00030756,30]
[422124363,1778590246000,-298.0,0.00030674,30]
[422124364,1778590246000,-155.0,0.00030674,30]
[422124365,1778590246000,-198.0,0.00030674,30]
[422124356,1778590246000,-282.44,0.000302,7]
[422124359,1778590246000,-155.0,0.00030674,30]
[422124358,1778590246000,-1000.0,0.00030639,5]
[422124357,1778590246000,-151.0,0.00030239,2]
[422124352,1778590246000,-200.0,0.00030137,2]
[422124367,1778590246000,-279.0,0.00030756,30]
[422124360,1778590246000,-158.0,0.00030674,30]
[422124349,1778590246000,-204.6957508,0.0003013,2]
[422124368,1778590246000,-568.0,0.00030756,30]
[422124361,1778590246000,-327.0,0.00030674,30]
[422124378,1778590246000,-152.0,0.00031157,7]
[422124369,1778590246000,-1055.0,0.00030756,30]
[422124374,1778590246000,-812.35,0.00031,7]
[422124371,1778590246000,-565.0,0.00030979,30]
[422124377,1778590246000,-150.0,0.00031081,2]
[422124379,1778590246000,-1500.0,0.00031187,5]
[422124376,1778590246000,-206.2113691,0.00031,2]
[422124373,1778590246000,-150.0,0.00031,30]
[422124375,1778590246000,-206.21136911,0.00031,2]
[422124370,1778590246000,-691.0,0.000308,2]
[422124372,1778590246000,-156.07,0.00030982,120]
[422124350,1778590246000,-20072.65524883,0.0003013,7]
[422124362,1778590246000,-261.0,0.00030674,30]
[422124351,1778590246000,-275.33,0.00030137,2]
[422124335,1778590246000,-31508.86366377,0.00029,7]
[422124348,1778590246000,-14055.96881562,0.0003013,2]
[422124330,1778590246000,-4917.6842091,0.00028961,2]
[422124324,1778590246000,-1273.818,0.00028843,2]
[422124331,1778590246000,-680.7883379,0.00028961,2]
[422124325,1778590246000,-200.0,0.00028843,2]
[422124323,1778590246000,-3576.775,0.00028843,2]
[422124326,1778590246000,-150.0,0.00028843,2]
[422124328,1778590246000,-731.97315253,0.00028952,2]
[422124327,1778590246000,-150.18,0.00028843,2]
[422124329,1778590246000,-731.97315253,0.00028956,2]
[422124334,1778590246000,-3461.81793877,0.00029,4]
[422124332,1778590246000,-20860.5436474,0.00028961,2]
[422124343,1778590246000,-87877.0,0.0003,2]
[422124354,1778590246000,-1300.15954341,0.00030137,2]
[422124382,1778590246000,-510.0,0.00031526,9]
[422124336,1778590246000,-1494.184881,0.00029,2]
[422124338,1778590246000,-298.21801564,0.00029452,30]
[422124340,1778590246000,-150.0,0.00029601,2]
[422124339,1778590246000,-231.36230873,0.00029537,42]
[422124342,1778590246000,-2437.27,0.00029778,7]
[422124341,1778590246000,-762.0,0.00029659,10]
[422124345,1778590246000,-14997.0,0.0003,2]
[422124355,1778590246000,-243.653,0.00030149,2]
[422124346,1778590246000,-500.0,0.00030091,5]
[422124344,1778590246000,-1558.65491597,0.0003,2]
[422124353,1778590246000,-5006.29278813,0.00030137,120]
[422124347,1778590246000,-510.0,0.000301,7]
[422124333,1778590246000,-11323.2349668,0.00028961,2]
[422124380,1778590246000,-330.0,0.00031384,19]
[422124337,1778590246000,-496.0,0.00029329,10]
[422124391,1778590246000,-198.0,0.00031674,30]
[422124423,1778590246000,-40011.0,0.00032381,10]
[422124431,1778590246000,-40045.0,0.00032585,10]
[422124425,1778590246000,-40011.0,0.00032458,10]
[422124433,1778590246000,-40011.0,0.0003261,10]
[422124429,1778590246000,-40011.0,0.00032534,10]
[422124437,1778590246000,-155.0,0.00032674,30]
[422124421,1778590246000,-40045.0,0.00032351,10]
[422124427,1778590246000,-40045.0,0.00032468,10]
[422124435,1778590246000,-150.0,0.00032636,2]
[422124439,1778590246000,-158.0,0.00032674,30]
[422124441,1778590246000,-327.0,0.00032674,30]
[422124443,1778590246000,-261.0,0.00032674,30]
[422124406,1778590246000,-1097.2836651,0.00032208,2]
[422124445,1778590246000,-298.0,0.00032674,30]
[422124457,1778590246000,-40045.0,0.00032819,10]
[422124458,1778590246000,-40011.0,0.00032839,10]
[422124448,1778590246000,-198.0,0.00032674,30]
[422124452,1778590246000,-279.0,0.00032756,30]
[422124451,1778590246000,-154.0,0.00032756,30]